fUST/lending_fUST_20250808
["ID","MTS","AMOUNT","RATE_DAILY","PERIOD"]
[377947664,1754624918668,3012.0,0.0003,120]
[377947671,1754624978167,24900.0,0.00021309,2]
[377947720,1754625032218,-203.000812,0.000217,2]
[377947722,1754625032228,-2000.0,0.000218,2]
[377947724,1754625032238,-1200.0,0.00021906,2]
[377947726,1754625032247,-1200.0,0.00021914,2]
[377947728,1754625032257,-157.0,0.00021915,2]
[377947730,1754625032266,-234.44039575,0.00021915,2]
[377947733,1754625032286,-28.55960425,0.00021915,2]
[377947735,1754625032295,-1121.25618799,0.00021916,2]
[377947737,1754625032306,-4869.84717722,0.00021916,2]
[377947739,1754625032315,-500.0,0.00021916,2]
[377947741,1754625032324,-500.0,0.00021916,2]
[377947746,1754625032334,-500.0,0.00021916,2]
[377947750,1754625032353,-500.0,0.00021916,2]
[377947752,1754625032363,-500.0,0.00021916,2]
[377947754,1754625032372,-500.0,0.00021916,2]
[377947756,1754625032382,-500.0,0.00021916,2]
[377947758,1754625032391,-500.0,0.00021916,2]
[377947760,1754625032400,-500.0,0.00021916,2]
[377947762,1754625032410,-280.73759521,0.00021916,2]
[377947763,1754625032419,-500.0,0.00021916,2]
[377947765,1754625032428,-500.0,0.00021916,2]
[377947767,1754625032438,-500.0,0.00021916,2]
[377947769,1754625032447,-500.0,0.00021916,2]
[377947771,1754625032457,-500.0,0.00021916,2]
[377947773,1754625032466,-215.46563472,0.00021916,2]
[377947774,1754625032476,-500.0,0.00021916,2]
[377947775,1754625032486,-500.0,0.00021916,2]
[377947776,1754625032496,-500.0,0.00021916,2]
[377947777,1754625032506,-334.44093905,0.00021916,2]
[377947778,1754625032516,-507.29278908,0.00021917,2]
[377947779,1754625032525,-461.84240166,0.00021917,2]
[377947780,1754625032535,-460.0,0.00021917,2]
[377947781,1754625032545,-466.064886,0.00021917,2]
[377947782,1754625032554,-457.42225997,0.00021917,2]
[377947783,1754625032563,-462.89954574,0.00021917,2]
[377947784,1754625032573,-460.0,0.00021917,2]
[377947785,1754625032583,-460.0,0.00021917,2]
[377947786,1754625032593,-460.0,0.00021917,2]
[377947787,1754625032607,-462.82514826,0.00021917,2]
[377947788,1754625032618,-464.25254106,0.00021917,2]
[377947789,1754625032628,-461.5764272,0.00021917,2]
[377947790,1754625032637,-462.49981164,0.00021917,2]
[377947791,1754625032648,-462.51040924,0.00021917,2]
[377947792,1754625032658,-450.33161069,0.00021917,2]
[377947793,1754625032667,-460.0,0.00021917,2]
[377947794,1754625032677,-462.10269579,0.00021917,2]
[377947795,1754625032687,-460.0,0.00021917,2]
[377947796,1754625032697,-460.0,0.00021917,2]
[377947797,1754625032706,-460.0,0.00021917,2]
[377947798,1754625032716,-460.0,0.00021917,2]
[377947799,1754625032725,-460.0,0.00021917,2]
[377947800,1754625032734,-460.0,0.00021917,2]
[377947801,1754625032744,-460.0,0.00021917,2]
[377947802,1754625032754,-460.0,0.00021917,2]
[377947803,1754625032764,-460.3651894,0.00021917,2]
[377947804,1754625032774,-460.0,0.00021917,2]
[377947806,1754625032783,-460.0,0.00021917,2]
[377947808,1754625032792,-460.0,0.00021917,2]
[377947810,1754625032801,-441.30271949,0.00021917,2]
[377947812,1754625032811,-443.00697545,0.00021917,2]
[377947814,1754625032820,-462.38768857,0.00021917,2]
[377947816,1754625032830,-460.0,0.00021917,2]
[377947818,1754625032839,-460.0,0.00021917,2]
[377947820,1754625032848,-460.0,0.00021917,2]
[377947822,1754625032858,-460.0,0.00021917,2]
[377947824,1754625032867,-460.0,0.00021917,2]
[377947826,1754625032881,-460.0,0.00021917,2]
[377947828,1754625032891,-460.0,0.00021917,2]
[377947830,1754625032900,-460.0,0.00021917,2]
[377947832,1754625032910,-460.0,0.00021917,2]
[377947834,1754625032920,-460.0,0.00021917,2]
[377947836,1754625032930,-462.3784884,0.00021917,2]
[377947839,1754625032940,-464.87313505,0.00021917,2]
[377947841,1754625032949,-421.65353124,0.00021917,2]
[377947843,1754625032959,-460.0,0.00021917,2]
[377947845,1754625032968,-1817.53,0.00021917,2]
[377947847,1754625032977,-460.0,0.00021917,2]
[377947848,1754625032986,-463.19243968,0.00021917,2]
[377947851,1754625032996,-460.0,0.00021917,2]
[377947853,1754625033005,-460.0,0.00021917,2]
[377947854,1754625033015,-460.0,0.00021917,2]
[377947856,1754625033024,-461.72844624,0.00021917,2]
[377947859,1754625033034,-460.0,0.00021917,2]
[377947860,1754625033044,-460.0,0.00021917,2]
[377947862,1754625033054,-460.0,0.00021917,2]
[377947864,1754625033064,-557.81997993,0.00021917,2]
[377947866,1754625033074,-418.91139132,0.00021917,2]
[377948365,1754625038222,-43.62798334,0.00021917,2]
[377948367,1754625038232,-391.37201666,0.00021917,2]
[377948562,1754625042627,-688.93,0.00021907,10]
[377948563,1754625042638,-69.91507369,0.00021917,2]
[377948564,1754625042648,-460.0,0.00021917,2]
[377948565,1754625042657,-146.44491213,0.00021917,2]
[377948569,1754625042681,-73.16747801,0.00021917,2]
[377948570,1754625042691,-460.0,0.00021917,2]
[377948572,1754625042701,-460.0,0.00021917,2]
[377948574,1754625042711,-460.0,0.00021917,2]
[377948576,1754625042720,-460.0,0.00021917,2]
[377948578,1754625042729,-460.0,0.00021917,2]
[377948579,1754625042741,-423.5625703,0.00021917,2]
[377948580,1754625042750,-365.64579222,0.00021917,2]
[377948581,1754625042762,-94.35420778,0.00021917,2]
[377948583,1754625042771,-224.60488127,0.00021917,2]
[377948584,1754625042783,-239.13405401,0.00021917,2]
[377948585,1754625042793,-462.07823891,0.00021917,2]
[377948586,1754625042803,-460.0,0.00021917,2]
[377948587,1754625042813,-461.2722915,0.00021917,2]
[377948588,1754625042822,-462.12470031,0.00021917,2]
[377948589,1754625042832,-460.9139016,0.00021917,2]
[377948590,1754625042841,-353.43400781,0.00021917,2]
[377948591,1754625042850,-951.63,0.00021917,2]
[377948592,1754625042859,-461.42354823,0.00021917,2]
[377948593,1754625042869,-462.68211865,0.00021917,2]
[377948594,1754625042878,-464.44557838,0.00021917,2]
[377948595,1754625042888,-460.0,0.00021917,2]
[377948596,1754625042897,-466.67052707,0.00021917,2]
[377948597,1754625042906,-460.0,0.00021917,2]
[377948598,1754625042915,-461.50677317,0.00021917,2]
[377948599,1754625042925,-460.0,0.00021917,2]
[377948600,1754625042935,-464.51371235,0.00021917,2]
[377948601,1754625042944,-467.03996205,0.00021917,2]
[377948602,1754625042954,-463.06242408,0.00021917,2]
[377948603,1754625042963,-463.58565065,0.00021917,2]
[377948604,1754625042972,-460.40725984,0.00021917,2]
[377948605,1754625042981,-460.67167028,0.00021917,2]
[377948606,1754625042990,-460.0,0.00021917,2]
[377948607,1754625042999,-460.88029951,0.00021917,2]
[377948608,1754625043009,-460.0,0.00021917,2]
[377948609,1754625043019,-460.0,0.00021917,2]
[377948610,1754625043028,-460.0,0.00021917,2]
[377948611,1754625043038,-461.39904879,0.00021917,2]
[377948612,1754625043047,-460.0,0.00021917,2]
[377948613,1754625043056,-465.36004729,0.00021917,2]
[377948614,1754625043066,-460.0,0.00021917,2]
[377948615,1754625043075,-460.0,0.00021917,2]
[377948616,1754625043084,-467.14059279,0.00021917,2]
[377948617,1754625043094,-461.51957553,0.00021917,2]
[377948618,1754625043103,-462.95875442,0.00021917,2]
[377948619,1754625043112,-460.0,0.00021917,2]
[377948620,1754625043122,-461.9702887,0.00021917,2]
[377948621,1754625043132,-276.185584,0.00021917,2]
[377948622,1754625043141,-461.70462383,0.00021917,2]
[377948623,1754625043150,-465.05150852,0.00021917,2]
[377948624,1754625043160,-309.47997907,0.00021917,2]
[377948625,1754625043169,-460.0,0.00021917,2]
[377948626,1754625043178,-469.08044871,0.00021917,2]
[377948627,1754625043188,-466.37958003,0.00021917,2]
[377948628,1754625043197,-461.40092581,0.00021917,2]
[377948629,1754625043207,-460.0,0.00021917,2]
[377948630,1754625043216,-460.0,0.00021917,2]
[377948631,1754625043225,-464.14871529,0.00021917,2]
[377948632,1754625043234,-462.634064,0.00021917,2]
[377948633,1754625043243,-460.0,0.00021917,2]
[377948634,1754625043252,-460.78617317,0.00021917,2]
[377948635,1754625043261,-462.32592459,0.00021917,2]
[377948636,1754625043272,-461.99232844,0.00021917,2]
[377948637,1754625043281,-460.0,0.00021917,2]
[377948638,1754625043291,-462.02055039,0.00021917,2]
[377948639,1754625043300,-463.5131884,0.00021917,2]
[377948640,1754625043310,-461.32616433,0.00021917,2]
[377948641,1754625043320,-462.12963984,0.00021917,2]
[377948642,1754625043330,-460.0,0.00021917,2]
[377948643,1754625043340,-464.95326741,0.00021917,2]
[377948644,1754625043349,-460.0,0.00021917,2]
[377948645,1754625043358,-461.82681059,0.00021917,2]
[377948646,1754625043368,-420.19301536,0.00021917,2]
[377948647,1754625043378,-464.6629374,0.00021917,2]
[377948648,1754625043387,-466.25721689,0.00021917,2]
[377948649,1754625043397,-461.16916064,0.00021917,2]
[377948650,1754625043406,-468.82652146,0.00021917,2]
[377948651,1754625043416,-451.61635101,0.00021917,2]
[377948652,1754625043426,-470.59685124,0.00021917,2]
[377948653,1754625043435,-463.3815431,0.00021917,2]
[377948654,1754625043445,-224.11450053,0.00021917,2]
[377948655,1754625043454,-460.0,0.00021917,2]
[377948656,1754625043464,-460.0,0.00021917,2]
[377948657,1754625043473,-323.16480799,0.00021917,2]
[377948658,1754625043483,-460.0,0.00021917,2]
[377948659,1754625043493,-470.50254484,0.00021917,2]
[377948660,1754625043503,-463.84104537,0.00021917,2]
[377948661,1754625043513,-460.0,0.00021917,2]
[377948662,1754625043523,-460.0,0.00021917,2]
[377948663,1754625043534,-543.9498603,0.00021917,2]
[377948664,1754625043543,-460.0,0.00021917,2]
[377948665,1754625043552,-460.0,0.00021917,2]
[377948666,1754625043562,-460.0,0.00021917,2]
[377948667,1754625043571,-460.0,0.00021917,2]
[377948668,1754625043581,-460.0,0.00021917,2]
[377948669,1754625043590,-460.0,0.00021917,2]
[377948670,1754625043602,-460.0,0.00021917,2]
[377948671,1754625043612,-460.0,0.00021917,2]
[377948672,1754625043622,-460.0,0.00021917,2]
[377948673,1754625043631,-460.0,0.00021917,2]
[377948674,1754625043642,-460.0,0.00021917,2]
[377948675,1754625043653,-460.0,0.00021917,2]
[377948676,1754625043663,-460.0,0.00021917,2]
[377948677,1754625043673,-460.0,0.00021917,2]
[377948678,1754625043682,-460.0,0.00021917,2]
[377948679,1754625043693,-460.0,0.00021917,2]
[377948680,1754625043702,-464.14391286,0.00021917,2]
[377948681,1754625043711,-460.0,0.00021917,2]
[377948682,1754625043721,-460.0,0.00021917,2]
[377948683,1754625043730,-1108.26,0.00021917,2]
[377948684,1754625043741,-460.0,0.00021917,2]
[377948685,1754625043750,-460.0,0.00021917,2]
[377948686,1754625043760,-460.0,0.00021917,2]
[377948687,1754625043770,-460.72538108,0.00021917,2]
[377948688,1754625043779,-460.0,0.00021917,2]
[377948689,1754625043788,-462.43663084,0.00021917,2]
[377948690,1754625043798,-462.68415757,0.00021917,2]
[377948691,1754625043807,-460.0,0.00021917,2]
[377948693,1754625043817,-460.0,0.00021917,2]
[377948694,1754625043826,-460.0,0.00021917,2]
[377948696,1754625043835,-462.47041814,0.00021917,2]
[377948698,1754625043844,-460.0,0.00021917,2]
[377948700,1754625043854,-764.26,0.00021917,2]
[377948702,1754625043863,-460.0,0.00021917,2]
[377948704,1754625043873,-460.0,0.00021917,2]
[377948706,1754625043882,-461.42304529,0.00021917,2]
[377948708,1754625043891,-461.79725765,0.00021917,2]
[377948710,1754625043901,-461.64720124,0.00021917,2]
[377948712,1754625043912,-460.0,0.00021917,2]
[377948714,1754625043922,-460.0,0.00021917,2]
[377948716,1754625043932,-482.6,0.00021917,2]
[377948718,1754625043942,-460.0,0.00021917,2]
[377948720,1754625043951,-460.0,0.00021917,2]
[377948722,1754625043960,-461.98797347,0.00021917,2]
[377948724,1754625043969,-470.80845691,0.00021917,2]
[377948726,1754625043978,-463.40611204,0.00021917,2]
[377948728,1754625043987,-460.36475874,0.00021917,2]
[377948730,1754625043996,-2665.03,0.00021917,2]
[377948732,1754625044006,-462.95494143,0.00021917,2]
[377948734,1754625044015,-460.0,0.00021917,2]
[377948736,1754625044024,-460.0,0.00021917,2]
[377948738,1754625044034,-460.0,0.00021917,2]
[377948740,1754625044043,-677.75,0.00021917,2]
[377948742,1754625044053,-764.06,0.00021917,2]
[377948744,1754625044062,-460.0,0.00021917,2]
[377948745,1754625044071,-460.0,0.00021917,2]
[377948746,1754625044079,-460.0,0.00021917,2]
[377948747,1754625044088,-460.0,0.00021917,2]
[377948748,1754625044097,-460.0,0.00021917,2]
[377948749,1754625044106,-460.0,0.00021917,2]
[377948750,1754625044115,-464.45813703,0.00021917,2]
[377948751,1754625044124,-194.23864873,0.00021917,2]
[377948752,1754625044134,-460.0,0.00021917,2]
[377948753,1754625044146,-460.0,0.00021917,2]
[377948754,1754625044155,-460.0,0.00021917,2]
[377948755,1754625044164,-460.0,0.00021917,2]
[377948756,1754625044173,-460.0,0.00021917,2]
[377948757,1754625044182,-462.34191647,0.00021917,2]
[377948758,1754625044191,-460.0,0.00021917,2]
[377948759,1754625044200,-460.0,0.00021917,2]
[377948760,1754625044209,-462.42749405,0.00021917,2]
[377948761,1754625044218,-263.57619824,0.00021917,2]
[377948762,1754625044227,-460.0,0.00021917,2]
[377948763,1754625044235,-460.0,0.00021917,2]
[377948764,1754625044245,-460.0,0.00021917,2]
[377948766,1754625044254,-460.0,0.00021917,2]
[377948768,1754625044264,-460.0,0.00021917,2]
[377948770,1754625044273,-167.36068761,0.00021917,2]
[377949015,1754625049557,150.0,0.00027602,30]
[377949045,1754625340266,4924.8520801,0.00019909,2]
[377949046,1754625372887,153.0,0.000279,30]
[377949047,1754625394712,471.0,0.0003,120]
[377949051,1754625435052,153.0,0.000279,30]
[377949055,1754625494358,153.0,0.000279,30]
[377949057,1754625511818,321.7227542,0.00021011,2]
[377949058,1754625544687,2000.0,0.00028,30]
[377949059,1754625555740,153.0,0.000279,30]
[377949062,1754625613736,154.062926,0.000279,30]
[377949067,1754625674575,153.0,0.000279,30]
[377949079,1754625736243,153.0,0.000279,30]
[377949087,1754625747351,168.513237,0.00013699,2]
[377949089,1754625795182,153.0,0.000279,30]
[377949108,1754625924202,323.0,0.0002148,7]
[377949116,1754626048861,24900.0,0.00020951,2]
[377949119,1754626083700,10000.0,0.00030137,120]
[377949120,1754626104387,292.51,0.00030137,120]
[377949123,1754626159215,4999.9,0.0002148,2]
[377949196,1754626232431,-300.0,0.00021812,2]
[377949197,1754626232440,-160.01574974,0.00021812,2]
[377949198,1754626232451,-139.98425026,0.00021812,2]
[377949199,1754626232461,-300.0,0.00021812,2]
[377949200,1754626232471,-300.0,0.00021812,2]
[377949201,1754626232482,-398.81709232,0.00021812,2]
[377949246,1754626238432,-254.66911156,0.00021812,2]
[377949258,1754626238538,-546.51379612,0.00021812,2]
[377949260,1754626238548,-2100.6546915,0.00021815,7]
[377949262,1754626238558,-1200.0,0.00021915,2]
[377949264,1754626238567,-150.0,0.00021916,2]
[377949266,1754626238577,-500.0,0.00021916,2]
[377949268,1754626238586,-500.0,0.00021916,2]
[377949270,1754626238596,-579.49618164,0.00021916,2]
[377949272,1754626238605,-253.41528836,0.00021916,2]
[377949274,1754626238615,-593.00149593,0.00021916,2]
[377949276,1754626238624,-254.66911156,0.00021916,2]
[377949278,1754626238634,-1000.0,0.00021917,2]
[377949280,1754626238643,-930.58466697,0.00021917,2]
[377949282,1754626238652,-460.0,0.00021917,2]
[377949283,1754626238662,-468.95110278,0.00021917,2]
[377949284,1754626238671,-492.23154552,0.00021917,2]
[377949285,1754626238688,-408.34081189,0.00021917,2]
[377949286,1754626238700,-460.0,0.00021917,2]
[377949287,1754626238710,-460.0,0.00021917,2]
[377949288,1754626238719,-460.0,0.00021917,2]
[377949289,1754626238729,-523.13906533,0.00021917,2]
[377949290,1754626238739,-460.0,0.00021917,2]
[377949291,1754626238748,-460.0,0.00021917,2]
[377949292,1754626238758,-534.96,0.00021917,2]
[377949293,1754626238768,-460.0,0.00021917,2]
[377949294,1754626238778,-460.0,0.00021917,2]
[377949295,1754626238788,-460.0,0.00021917,2]
[377949296,1754626238798,-484.78764584,0.00021917,2]
[377949297,1754626238808,-562.33183328,0.00021917,2]
[377949298,1754626238818,-460.0,0.00021917,2]
[377949299,1754626238828,-460.0,0.00021917,2]
[377949300,1754626238839,-2049.14,0.00021917,2]
[377949301,1754626238848,-460.0,0.00021917,2]
[377949302,1754626238858,-272.87984282,0.00021917,2]
[377949303,1754626238868,-313.78438394,0.00021917,2]
[377949304,1754626238878,-460.0,0.00021917,2]
[377949305,1754626238888,-460.0,0.00021917,2]
[377949306,1754626238900,-460.0,0.00021917,2]
[377949307,1754626238912,-460.0,0.00021917,2]
[377949308,1754626238922,-255.96048759,0.00021917,2]
[377949309,1754626238932,-491.52118448,0.00021917,2]
[377949310,1754626238943,-485.7552248,0.00021917,2]
[377949311,1754626238952,-460.0,0.00021917,2]
[377949312,1754626238962,-460.0,0.00021917,2]
[377949313,1754626238972,-463.36192375,0.00021917,2]
[377949315,1754626238982,-460.0,0.00021917,2]
[377949316,1754626238992,-460.0,0.00021917,2]
[377949317,1754626239002,-264.49884281,0.00021917,2]
[377949319,1754626239012,-460.0,0.00021917,2]
[377949320,1754626239022,-460.0,0.00021917,2]
[377949321,1754626239032,-460.0,0.00021917,2]
[377949322,1754626239042,-460.0,0.00021917,2]
[377949323,1754626239052,-460.0,0.00021917,2]
[377949324,1754626239062,-461.15020137,0.00021917,2]
[377949325,1754626239072,-464.4967765,0.00021917,2]
[377949326,1754626239081,-460.0,0.00021917,2]
[377949327,1754626239091,-460.0,0.00021917,2]
[377949328,1754626239100,-460.0,0.00021917,2]
[377949329,1754626239110,-1032.43,0.00021917,2]
[377949330,1754626239119,-460.0,0.00021917,2]
[377949331,1754626239129,-460.0,0.00021917,2]
[377949332,1754626239139,-460.0,0.00021917,2]
[377949333,1754626239148,-460.0,0.00021917,2]
[377949334,1754626239157,-460.0,0.00021917,2]
[377949335,1754626239167,-2203.77,0.00021917,2]
[377949336,1754626239177,-497.4432277,0.00021917,2]
[377949337,1754626239187,-460.0,0.00021917,2]
[377949338,1754626239197,-386.65558649,0.00021917,2]
[377949339,1754626239206,-460.0,0.00021917,2]
[377949340,1754626239216,-467.07946055,0.00021917,2]
[377949341,1754626239225,-462.73263808,0.00021917,2]
[377949342,1754626239235,-460.0,0.00021917,2]
[377949343,1754626239245,-460.0,0.00021917,2]
[377949344,1754626239255,-460.0,0.00021917,2]
[377949345,1754626239264,-460.0,0.00021917,2]
[377949346,1754626239274,-739.18,0.00021917,2]
[377949347,1754626239283,-462.36150975,0.00021917,2]
[377949348,1754626239293,-463.57293875,0.00021917,2]
[377949349,1754626239302,-461.1575817,0.00021917,2]
[377949350,1754626239316,-466.49741187,0.00021917,2]
[377949351,1754626239326,-460.0,0.00021917,2]
[377949352,1754626239336,-460.0,0.00021917,2]
[377949353,1754626239345,-460.0,0.00021917,2]
[377949354,1754626239355,-494.9352883,0.00021917,2]
[377949355,1754626239366,-460.0,0.00021917,2]
[377949356,1754626239376,-460.0,0.00021917,2]
[377949357,1754626239385,-460.0,0.00021917,2]
[377949358,1754626239395,-460.0,0.00021917,2]
[377949359,1754626239404,-460.0,0.00021917,2]
[377949360,1754626239415,-460.0,0.00021917,2]
[377949361,1754626239424,-813.13,0.00021917,2]
[377949362,1754626239434,-461.55372509,0.00021917,2]
[377949363,1754626239444,-460.0,0.00021917,2]
[377949364,1754626239454,-477.32359781,0.00021917,2]
[377949365,1754626239464,-460.0,0.00021917,2]
[377949366,1754626239474,-460.0,0.00021917,2]
[377949367,1754626239484,-460.99008675,0.00021917,2]
[377949368,1754626239494,-460.0,0.00021917,2]
[377949369,1754626239503,-460.0,0.00021917,2]
[377949370,1754626239513,-1228.04,0.00021917,2]
[377949371,1754626239524,-462.91641525,0.00021917,2]
[377949372,1754626239534,-460.0,0.00021917,2]
[377949373,1754626239543,-853.13,0.00021917,2]
[377949374,1754626239553,-1750.1,0.00021917,2]
[377949375,1754626239563,-1098.83,0.00021917,2]
[377949376,1754626239574,-204.82413181,0.00021917,2]
[377949377,1754626239584,-460.0,0.00021917,2]
[377949379,1754626239594,-460.0,0.00021917,2]
[377949380,1754626239603,-466.54363822,0.00021917,2]
[377949381,1754626239613,-460.0,0.00021917,2]
[377949382,1754626239623,-460.0,0.00021917,2]
[377949384,1754626239633,-460.0,0.00021917,2]
[377949385,1754626239644,-460.0,0.00021917,2]
[377949386,1754626239654,-460.0,0.00021917,2]
[377949388,1754626239663,-460.0,0.00021917,2]
[377949389,1754626239674,-479.75,0.00021917,2]
[377949390,1754626239683,-460.0,0.00021917,2]
[377949391,1754626239693,-1294.26,0.00021917,2]
[377949392,1754626239703,-460.0,0.00021917,2]
[377949393,1754626239714,-460.0,0.00021917,2]
[377949394,1754626239724,-460.0,0.00021917,2]
[377949396,1754626239734,-460.0,0.00021917,2]
[377949397,1754626239744,-460.0,0.00021917,2]
[377949398,1754626239754,-348.07912046,0.00021917,2]
[377949399,1754626239766,-460.0,0.00021917,2]
[377949400,1754626239776,-545.94,0.00021917,2]
[377949401,1754626239786,-469.42942625,0.00021917,2]
[377949402,1754626239795,-3220.25,0.00021917,2]
[377949403,1754626239805,-460.0,0.00021917,2]
[377949404,1754626239814,-460.0,0.00021917,2]
[377949405,1754626239825,-460.0,0.00021917,2]
[377949406,1754626239835,-460.0,0.00021917,2]
[377949407,1754626239844,-460.0,0.00021917,2]
[377949408,1754626239854,-460.0,0.00021917,2]
[377949409,1754626239863,-460.0,0.00021917,2]
[377949410,1754626239873,-923.49,0.00021917,2]
[377949411,1754626239883,-460.0,0.00021917,2]
[377949412,1754626239893,-460.0,0.00021917,2]
[377949413,1754626239905,-460.0,0.00021917,2]
[377949414,1754626239915,-460.0,0.00021917,2]
[377949415,1754626239924,-460.0,0.00021917,2]
[377949416,1754626239934,-460.0,0.00021917,2]
[377949417,1754626239944,-862.15,0.00021917,2]
[377949418,1754626239954,-460.0,0.00021917,2]
[377949419,1754626239964,-460.0,0.00021917,2]
[377949420,1754626239976,-460.0,0.00021917,2]
[377949421,1754626239986,-460.0,0.00021917,2]
[377949422,1754626239997,-460.0,0.00021917,2]
[377949424,1754626240007,-460.0,0.00021917,2]
[377949426,1754626240016,-460.0,0.00021917,2]
[377949428,1754626240026,-460.0,0.00021917,2]
[377949430,1754626240036,-460.0,0.00021917,2]
[377949432,1754626240046,-465.48733202,0.00021917,2]
[377949434,1754626240057,-849.28,0.00021917,2]
[377949436,1754626240066,-460.0,0.00021917,2]
[377949438,1754626240078,-460.0,0.00021917,2]
[377949440,1754626240087,-460.0,0.00021917,2]
[377949442,1754626240097,-460.0,0.00021917,2]
[377949444,1754626240107,-500.0,0.00021917,2]
[377949446,1754626240117,-500.0,0.00021917,2]
[377949448,1754626240127,-460.0,0.00021917,2]
[377949450,1754626240136,-460.0,0.00021917,2]
[377949452,1754626240146,-411.16229983,0.00021917,2]
[377949454,1754626240156,-559.92,0.00021917,2]
[377949456,1754626240165,-460.0,0.00021917,2]
[377949458,1754626240175,-467.87580124,0.00021917,2]
[377949460,1754626240185,-460.0,0.00021917,2]
[377949462,1754626240195,-460.0,0.00021917,2]
[377949464,1754626240205,-463.63691803,0.00021917,2]
[377949466,1754626240215,-460.0,0.00021917,2]
[377949468,1754626240224,-501.01,0.00021917,2]
[377949470,1754626240234,-460.0,0.00021917,2]
[377949472,1754626240244,-465.518165,0.00021917,2]
[377949474,1754626240254,-782.63,0.00021917,2]
[377949476,1754626240263,-463.68,0.00021917,2]
[377949478,1754626240273,-460.0,0.00021917,2]
[377949480,1754626240283,-468.02855033,0.00021917,2]
[377949482,1754626240293,-500.0,0.00021972,2]
[377949484,1754626240302,-585.45,0.00022,2]
[377949486,1754626240312,-7713.09314251,0.00022085,2]
[377949488,1754626240322,-409.71,0.00022181,3]
[377949490,1754626240332,-204.86,0.00022181,3]
[377949492,1754626240342,-614.59,0.00022181,3]
[377949494,1754626240351,-500.0,0.00022184,2]
[377949496,1754626240361,-500.0,0.0002219,2]
[377949498,1754626240370,-500.0,0.0002219,2]
[377949500,1754626240380,-3897.69015827,0.00022191,2]
[377949502,1754626240389,-460.0,0.00022191,2]
[377949503,1754626240398,-460.0,0.00022191,2]
[377949505,1754626240407,-460.0,0.00022191,2]
[377949507,1754626240417,-460.0,0.00022191,2]
[377949509,1754626240426,-460.0,0.00022191,2]
[377949511,1754626240436,-534.96,0.00022191,2]
[377949513,1754626240445,-281.55971162,0.00022191,2]
[377949515,1754626240454,-473.19905408,0.00022191,2]
[377949517,1754626240463,-2049.14,0.00022191,2]
[377949519,1754626240473,-460.0,0.00022191,2]
[377949521,1754626240482,-460.0,0.00022191,2]
[377949523,1754626240492,-460.0,0.00022191,2]
[377949525,1754626240503,-460.0,0.00022191,2]
[377949527,1754626240512,-460.0,0.00022191,2]
[377949529,1754626240521,-492.50533123,0.00022191,2]
[377949531,1754626240530,-460.0,0.00022191,2]
[377949533,1754626240540,-460.0,0.00022191,2]
[377949535,1754626240549,-460.0,0.00022191,2]
[377949537,1754626240558,-460.0,0.00022191,2]
[377949538,1754626240568,-460.0,0.00022191,2]
[377949540,1754626240578,-460.0,0.00022191,2]
[377949559,1754626240737,-532.7614586,0.00022191,2]
[377949561,1754626240748,-460.0,0.00022191,2]
[377949563,1754626240757,-179.8893674,0.00022191,2]
[377949565,1754626240767,-460.0,0.00022191,2]